bitfinex/quotes_SOLUSD_20260305
["timestamp","ask_amount","ask_price","bid_price","bid_amount"]
[1772723028714,27.58712012,90.622,90.543,3.89011108]
[1772723029002,11.03423924,90.627,90.546,0.28432314]
[1772723029207,38.61983735,90.627,90.561,3.4799455]
[1772723029503,1.10183124,90.626,90.565,3.76426864]
[1772723029910,11.03423924,90.627,90.565,3.76426864]
[1772723031703,1.10183124,90.649,90.57,3.4799455]
[1772723031912,27.57948088,90.648,90.577,0.14216157]
[1772723032110,1.32082984,90.646,90.584,3.4799455]
[1772723032403,12.32016172,90.64,90.584,3.4799455]
[1772723032596,1.32082984,90.629,90.584,3.4799455]
[1772723032914,1.10183124,90.647,90.586,3.4799455]
[1772723033085,1.10183124,90.647,90.588,3.4799455]
[1772723033586,1.32074489,90.646,90.588,3.4799455]
[1772723033792,1.32074489,90.643,90.59,3.4799455]
[1772723033992,38.61259431,90.644,90.59,3.4799455]
[1772723033993,10.99933188,90.64,90.59,3.4799455]
[1772723034204,1.32066092,90.638,90.59,3.4799455]
[1772723034383,1.10183124,90.637,90.59,3.4799455]
[1772723034798,1.10183124,90.643,90.59,3.4799455]
[1772723035302,1.32057791,90.642,90.59,3.4799455]
[1772723035507,1.10183124,90.641,90.59,3.4799455]
[1772723035692,1.32057791,90.639,90.59,3.4799455]
[1772723035883,1.60490105,90.637,90.59,3.4799455]
[1772723036083,1.604819,90.635,90.591,11.03862414]
[1772723036286,1.38615438,90.634,90.591,11.03862414]
[1772723036812,1.604819,90.633,90.591,14.51856964]
[1772723037010,1.32041474,90.629,90.58,3.4799455]
[1772723037196,1.32041474,90.627,90.58,3.4799455]
[1772723037815,39.72209474,90.626,90.581,11.03984279]
[1772723038011,39.72209474,90.626,90.582,3.4799455]
[1772723038224,1.32033456,90.625,90.582,3.4799455]
[1772723038520,1.10183124,90.624,90.582,3.4799455]
[1772723038706,1.32033456,90.625,90.582,3.4799455]
[1772723039209,1.3202553,90.624,90.582,3.4799455]
[1772723039812,38.62154198,90.623,90.583,11.03959904]
[1772723040136,11.03472628,90.623,90.584,3.4799455]
[1772723041016,12.35408439,90.63,90.584,3.4799455]
[1772723041220,1.3200995,90.628,90.576,11.04038448]
[1772723041511,1.3200995,90.619,90.532,3.4799455]
[1772723041822,1.32002294,90.616,90.541,3.69383402]
[1772723041998,1.32002294,90.614,90.55,3.4799455]
[1772723042312,1.32002294,90.599,90.55,3.4799455]
[1772723042624,1.32002294,90.599,90.51,44.39392034]
[1772723042625,1.32002294,90.579,90.527,3.4799455]
[1772723042913,1.31994726,90.579,90.532,3.4799455]
[1772723043494,1.31994726,90.593,90.532,3.4799455]
[1772723043715,1.31994726,90.579,90.521,7.48289927]
[1772723043917,1.31987245,90.558,90.521,4.00295377]
[1772723044138,1.60419559,90.558,90.521,4.00295377]
[1772723044417,1.31987245,90.558,90.521,4.00295377]
[1772723044602,1.60419559,90.549,90.51,0.2]
[1772723044803,0.28432314,90.539,90.496,0.69985413]
[1772723045009,3.81927794,90.519,90.452,38.69455622]
[1772723045319,0.28432314,90.545,90.452,138.19484365]
[1772723045513,0.28432314,90.545,90.455,3.69383402]
[1772723045814,11.04276864,90.557,90.462,4.82477569]
[1772723046024,3.69383402,90.575,90.462,4.82477569]
[1772723046025,11.03923343,90.586,90.466,4.82477569]
[1772723046228,38.63731701,90.586,90.478,8.51860971]
[1772723046416,4.63678604,90.585,90.486,0.14216157]
[1772723046606,3.5349548,90.596,90.492,0.28432314]
[1772723046806,3.5349548,90.596,90.493,1.10505784]
[1772723047022,3.5349548,90.606,90.502,4.82477569]
[1772723047231,3.5349548,90.62,90.518,3.69383402]
[1772723047397,11.03521336,90.619,90.529,3.4799455]
[1772723047724,11.03521336,90.619,90.55,0.28432314]
[1772723047920,3.69383402,90.645,90.55,0.28432314]
[1772723047921,14.56802427,90.637,90.562,3.4799455]
[1772723048220,14.56802427,90.637,90.578,3.4799455]
[1772723048409,15.66985551,90.637,90.578,3.4799455]
[1772723048725,3.5349548,90.636,90.578,3.4799455]
[1772723048897,11.03306947,90.637,90.579,0.28432314]
[1772723049100,3.5349548,90.636,90.588,3.4799455]
[1772723049304,3.5349548,90.629,90.56,3.4799455]
[1772723049505,3.5349548,90.621,90.56,3.4799455]
[1772723049699,3.5349548,90.619,90.56,3.4799455]
[1772723050019,11.03486687,90.622,90.562,3.4799455]
[1772723050319,11.03486687,90.622,90.568,3.4799455]
[1772723050498,11.03399574,90.629,90.568,3.4799455]
[1772723050698,11.03399574,90.629,90.561,138.02851115]
[1772723050699,11.03399574,90.629,90.578,3.4799455]
[1772723051512,3.5349548,90.628,90.578,3.4799455]
[1772723051810,4.63678604,90.628,90.578,3.4799455]
[1772723052011,3.5349548,90.626,90.58,3.4799455]
[1772723052206,3.5349548,90.624,90.568,3.4799455]
[1772723052425,11.03423924,90.627,90.572,3.4799455]
[1772723052629,3.5349548,90.619,90.563,3.4799455]
[1772723052933,3.5349548,90.619,90.535,44.18151728]
[1772723052934,3.5349548,90.599,90.549,14.52367215]
[1772723053226,10.99933188,90.6,90.549,14.52367215]
[1772723053227,3.5349548,90.597,90.549,14.52367215]
[1772723053401,3.5349548,90.595,90.549,3.4799455]
[1772723053604,3.5349548,90.595,90.518,0.28432314]
[1772723053605,1.10183124,90.599,90.551,3.4799455]
[1772723053808,3.5349548,90.606,90.551,3.4799455]
[1772723054032,3.5349548,90.616,90.553,3.4799455]
[1772723054242,1.10183124,90.615,90.555,3.4799455]
[1772723054411,4.63678604,90.629,90.558,3.4799455]
[1772723054614,3.5349548,90.629,90.568,3.4799455]
[1772723054812,1.10183124,90.64,90.578,3.4799455]
[1772723055010,3.5349548,90.639,90.578,3.4799455]
[1772723055323,3.5349548,90.631,90.578,3.4799455]
[1772723055526,3.5349548,90.629,90.578,3.4799455]
[1772723055719,3.5349548,90.623,90.556,3.76426864]
[1772723055928,3.5349548,90.607,90.558,3.4799455]
[1772723056318,11.03655306,90.608,90.558,3.4799455]
[1772723056522,11.03599592,90.613,90.558,3.4799455]
[1772723056945,3.5349548,90.609,90.558,3.4799455]
[1772723057135,0.28432314,90.602,90.558,3.4799455]
[1772723057310,3.5349548,90.599,90.555,11.04294111]
[1772723057507,3.5349548,90.589,90.538,14.52495791]
[1772723057821,0.14216157,90.575,90.527,11.04642813]
[1772723058009,3.5349548,90.576,90.527,11.04642813]
[1772723058010,3.5349548,90.569,90.527,11.04642813]
[1772723058433,3.5349548,90.569,90.526,3.4799455]
[1772723058738,11.0410617,90.571,90.527,3.4799455]
[1772723059038,3.60911455,90.582,90.527,3.4799455]
[1772723059331,3.60911455,90.579,90.527,3.4799455]
[1772723059530,3.60911455,90.577,90.527,3.4799455]
[1772723059830,11.03959904,90.583,90.527,3.4799455]
[1772723060211,11.03959904,90.583,90.518,0.28432314]
[1772723060212,3.60911455,90.581,90.529,3.56868992]
[1772723060727,3.60911455,90.579,90.529,3.56868992]
[1772723061622,3.60911455,90.579,90.522,14.61570005]
[1772723061817,3.60911455,90.579,90.523,3.56868992]
[1772723062328,0.28432314,90.574,90.525,3.56868992]
[1772723062660,3.60911455,90.575,90.525,3.56868992]
[1772723063819,1.10183124,90.574,90.525,3.56868992]
[1772723064130,3.60911455,90.573,90.525,3.56868992]
[1772723064321,11.0409398,90.572,90.527,3.56868992]
[1772723064629,11.03959904,90.583,90.527,3.56868992]
[1772723065035,11.0382586,90.594,90.529,3.56868992]
[1772723065233,38.63390511,90.594,90.537,3.56868992]
[1772723065425,3.60911455,90.592,90.537,3.56868992]
[1772723065733,3.60911455,90.589,90.537,3.56868992]
[1772723065927,3.60911455,90.587,90.518,0.14216157]
[1772723066138,3.60911455,90.569,90.483,66.3107987]
[1772723066431,3.60911455,90.566,90.486,3.69383402]
[1772723066738,3.63913318,90.566,90.487,0.28432314]
[1772723067311,3.63913318,90.564,90.487,0.28432314]
[1772723067529,3.63913318,90.549,90.483,38.68129924]
[1772723068024,3.63913318,90.549,90.484,3.83747653]
[1772723068729,82.81162012,90.567,90.342,11.02062163]
[1772723068730,3.63913318,90.539,90.486,3.83747653]
[1772723069128,3.63913318,90.529,90.479,11.05220242]
[1772723069435,86.52283078,90.548,90.453,3.83747653]
[1772723069436,3.63913318,90.519,90.453,3.83747653]
[1772723069635,0.28432314,90.521,90.454,3.83747653]
[1772723069849,3.63913318,90.519,90.457,3.83747653]
[1772723070533,3.69383402,90.538,90.464,3.83747653]
[1772723070534,3.63913318,90.538,90.464,3.83747653]
[1772723070742,3.63913318,90.536,90.468,3.83747653]
[1772723070940,3.63913318,90.549,90.474,3.83747653]
[1772723071146,44.14987474,90.601,90.482,3.83747653]
[1772723071147,3.63913318,90.544,90.482,3.83747653]
[1772723071442,3.63913318,90.544,90.488,3.83747653]
[1772723072239,1.10183124,90.543,90.488,3.83747653]
[1772723072535,3.63913318,90.537,90.479,3.83747653]
[1772723072739,3.63913318,90.535,90.479,3.83747653]
[1772723073117,11.02062163,90.52,90.465,11.05399878]
[1772723073333,3.63913318,90.509,90.465,11.05399878]
[1772723073538,3.63913318,90.509,90.453,14.89294179]
[1772723074132,3.63913318,90.499,90.451,11.05570972]
[1772723074543,3.63913318,90.499,90.451,38.69498402]
[1772723074716,3.63913318,90.497,90.44,38.69944344]
[1772723075218,3.63913318,90.497,90.45,3.93747653]
[1772723076041,3.63913318,90.479,90.45,0.1]
[1772723076522,11.02062163,90.49,90.45,0.1]
[1772723076836,44.17639172,90.547,90.45,0.1]
[1772723076837,1.10183124,90.513,90.451,3.83747653]
[1772723077047,3.49,91.848,90.45,0.1]
[1772723077048,11.02062163,90.55,90.458,3.83747653]
[1772723077215,11.02062163,90.54,90.462,3.83747653]
[1772723077417,0.28432314,90.529,90.468,3.83747653]
[1772723077615,1.10183124,90.528,90.468,3.83747653]
[1772723077838,0.28432314,90.519,90.468,3.83747653]
[1772723078039,11.02062163,90.51,90.451,3.83747653]
[1772723078233,1.10183124,90.509,90.451,3.83747653]
[1772723078544,11.02062163,90.48,90.45,0.1]
[1772723078842,3.63913318,90.478,90.45,0.1]
[1772723079046,3.63913318,90.474,90.45,0.1]
[1772723079259,0.28432314,90.478,90.431,4.11529273]
[1772723079429,0.28432314,90.483,90.433,3.83747653]
[1772723079625,14.69083054,90.484,90.433,3.83747653]
[1772723079825,11.05169736,90.484,90.433,3.83747653]
[1772723080033,0.28432314,90.483,90.433,3.83747653]
[1772723080235,3.92345632,90.483,90.433,3.83747653]
[1772723080643,11.05192192,90.482,90.435,3.83747653]
[1772723081142,11.05134593,90.487,90.435,3.83747653]
[1772723081341,3.63913318,90.486,90.435,3.83747653]
[1772723081540,3.63913318,90.485,90.435,3.83747653]
[1772723081731,11.05124602,90.488,90.437,3.83747653]
[1772723082144,3.63913318,90.497,90.437,3.83747653]
[1772723082337,1.10183124,90.496,90.437,3.83747653]
[1772723082543,88.34379113,90.556,90.439,3.83747653]
[1772723082544,11.04796189,90.515,90.439,3.83747653]
[1772723082846,11.04691625,90.523,90.449,3.83747653]
[1772723083029,11.04691625,90.523,90.457,3.83747653]
[1772723083238,3.63913318,90.509,90.457,3.83747653]
[1772723083424,38.66420688,90.523,90.457,3.83747653]
[1772723083425,3.63913318,90.507,90.457,3.83747653]
[1772723083741,3.92345632,90.499,90.443,3.83747653]
[1772723084055,1.10183124,90.498,90.443,3.83747653]
[1772723084222,3.63913318,90.496,90.443,3.83747653]
[1772723084426,3.63913318,90.496,90.399,44.24800765]
[1772723084427,3.92345632,90.489,90.441,11.05684119]
[1772723084643,3.63913318,90.48,90.435,3.83747653]
[1772723084822,1.10183124,90.488,90.434,11.057788]
[1772723084823,1.10183124,90.507,90.44,3.83747653]
[1772723085026,11.02062163,90.5,90.448,3.83747653]
[1772723085227,3.63913318,90.498,90.448,3.83747653]
[1772723085424,3.63913318,90.496,90.405,1.10613351]
[1772723085655,7.3329672,90.492,90.433,3.83747653]
[1772723085824,1.10183124,90.495,90.437,3.83747653]
[1772723086030,3.63913318,90.489,90.437,3.83747653]
[1772723086345,0.28432314,90.502,90.437,3.83747653]
[1772723086542,3.63913318,90.503,90.439,3.83747653]
[1772723086748,3.63913318,90.503,90.435,3.69383402]
[1772723086749,38.67317848,90.502,90.441,3.83747653]
[1772723086929,3.63913318,90.489,90.441,3.83747653]
[1772723087126,1.10183124,90.488,90.441,3.83747653]
[1772723087324,1.10183124,90.5,90.441,3.83747653]
[1772723087551,11.04947956,90.502,90.443,3.83747653]
[1772723087731,11.04947956,90.502,90.447,3.83747653]
[1772723087924,3.63913318,90.499,90.447,3.83747653]
[1772723088244,3.63913318,90.489,90.44,11.0570544]
[1772723088552,3.63913318,90.487,90.44,11.0570544]
[1772723088747,11.02062163,90.49,90.434,3.83747653]
[1772723088748,3.81896588,90.483,90.434,14.89519871]
[1772723088950,3.81896588,90.469,90.431,0.2778162]
[1772723089154,11.02062163,90.47,90.431,0.2778162]
[1772723089155,3.81896588,90.467,90.431,0.2778162]
[1772723089338,3.81896588,90.465,90.431,0.2778162]
[1772723089834,3.81896588,90.465,90.422,3.56038039]
[1772723089835,3.81896588,90.449,90.402,3.56038039]
[1772723090053,1.10183124,90.466,90.402,3.56038039]
[1772723090054,3.81896588,90.465,90.402,3.56038039]
[1772723090441,1.10183124,90.464,90.402,3.56038039]
[1772723090950,11.05424317,90.463,90.406,3.56038039]
[1772723091150,1.10183124,90.462,90.406,3.56038039]
[1772723091458,4.10328902,90.449,90.406,3.56038039]
[1772723091756,4.10328902,90.449,90.355,44.26966299]
[1772723091757,4.10328902,90.449,90.401,11.06182453]
[1772723092057,4.10328902,90.449,90.395,3.56038039]
[1772723092246,4.10328902,90.449,90.401,11.06182453]
[1772723092441,4.10328902,90.458,90.402,3.56038039]
[1772723092640,1.10183124,90.457,90.402,3.56038039]
[1772723092838,11.05363222,90.468,90.406,3.56038039]
[1772723093036,11.05363222,90.468,90.408,3.56038039]
[1772723093037,3.81896588,90.466,90.408,3.56038039]
[1772723093235,3.81896588,90.451,90.408,3.56038039]
[1772723093451,3.81896588,90.467,90.408,3.56038039]
[1772723093757,3.81896588,90.465,90.408,3.56038039]
[1772723093939,1.10183124,90.464,90.408,3.56038039]
[1772723094140,3.81896588,90.465,90.408,3.56038039]
[1772723094355,1.10183124,90.464,90.408,3.56038039]
[1772723094540,4.92079712,90.464,90.408,3.56038039]
[1772723094946,11.05277701,90.475,90.412,3.56038039]
[1772723095141,11.05277701,90.475,90.418,3.56038039]
[1772723095554,11.05143337,90.486,90.428,3.56038039]
[1772723096534,11.04996795,90.498,90.438,3.56038039]
[1772723096856,11.04862499,90.509,90.448,3.56038039]
[1772723097049,15.96942211,90.509,90.45,3.56038039]
[1772723097562,11.04862499,90.509,90.45,3.56038039]
[1772723098364,1.10183124,90.519,90.449,38.69583964]
[1772723098365,11.04679422,90.524,90.468,3.56038039]
[1772723098544,1.10183124,90.534,90.478,3.56038039]
[1772723098742,3.81896588,90.529,90.478,3.56038039]
[1772723098942,11.02062163,90.53,90.479,11.05228837]
[1772723098943,3.81896588,90.525,90.479,11.05228837]
[1772723099343,3.81896588,90.524,90.479,11.05228837]
[1772723099548,11.02062163,90.52,90.466,3.56038039]
[1772723099739,3.81896588,90.512,90.466,3.56038039]
[1772723099937,3.81896588,90.507,90.448,3.56038039]
[1772723100142,3.81896588,90.501,90.448,3.56038039]
[1772723100344,11.04655016,90.526,90.453,3.56038039]
[1772723100547,11.04655016,90.526,90.452,0.28432314]
[1772723100548,3.81896588,90.525,90.457,3.56038039]
[1772723100741,11.04655016,90.526,90.448,3.56038039]
[1772723100742,3.81896588,90.499,90.448,3.56038039]
[1772723100959,3.81896588,90.491,90.448,3.56038039]
[1772723101260,3.81896588,90.489,90.448,14.61640546]
[1772723101461,3.81896588,90.489,90.449,3.56038039]
[1772723101669,3.81896588,90.486,90.425,3.56038039]
[1772723101849,3.81896588,90.479,90.426,3.56038039]
[1772723102056,1.10183124,90.484,90.426,3.56038039]
[1772723102463,38.65908211,90.535,90.429,0.28432314]
[1772723102647,11.02062163,90.52,90.437,0.14216157]
[1772723102845,11.02062163,90.52,90.436,3.56038039]
[1772723102846,11.02062163,90.52,90.448,3.56038039]
[1772723103044,38.66591544,90.519,90.45,3.56038039]
[1772723103265,11.02062163,90.51,90.45,3.56038039]
[1772723103564,11.02062163,90.5,90.45,3.56038039]
[1772723103749,0.28432314,90.499,90.45,3.56038039]
[1772723104064,0.28432314,90.489,90.44,3.56038039]
[1772723104369,0.28432314,90.487,90.44,3.56038039]
[1772723104542,0.28432314,90.487,90.407,3.69383402]
[1772723104543,11.02062163,90.48,90.429,3.56038039]
[1772723104748,3.81896588,90.479,90.429,14.6186805]
[1772723105157,3.81896588,90.477,90.429,14.6186805]
[1772723105647,3.81896588,90.472,90.429,3.56038039]
[1772723105848,3.81896588,90.472,90.431,3.56038039]
[1772723106058,0.28432314,90.477,90.431,3.56038039]
[1772723106555,0.28432314,90.477,90.401,3.69383402]
[1772723106556,3.81896588,90.469,90.407,3.56038039]
[1772723106767,3.81896588,90.459,90.407,3.56038039]
[1772723107080,0.28432314,90.468,90.407,3.56038039]
[1772723107282,38.68728514,90.469,90.409,3.56038039]
[1772723107562,38.68728514,90.469,90.415,3.56038039]
[1772723108141,3.81896588,90.468,90.415,3.56038039]
[1772723108752,3.81896588,90.459,90.404,3.56038039]
[1772723108981,3.81896588,90.459,90.405,3.56038039]
[1772723109369,3.81896588,90.457,90.405,3.56038039]
[1772723109670,11.0537544,90.467,90.407,3.56038039]
[1772723109867,3.81896588,90.466,90.407,3.56038039]
[1772723110368,11.02062163,90.46,90.407,3.56038039]
[1772723110552,3.81896588,90.459,90.407,3.56038039]
[1772723110876,4.10328902,90.466,90.407,3.56038039]
[1772723111443,3.81896588,90.459,90.409,3.56038039]
[1772723112052,3.81896588,90.449,90.409,3.56038039]
[1772723112454,11.05253268,90.477,90.409,3.56038039]
[1772723112648,38.68386439,90.477,90.413,3.56038039]
[1772723112858,38.68386439,90.477,90.417,3.56038039]
[1772723113145,3.81896588,90.476,90.417,3.56038039]
[1772723113751,38.68471953,90.475,90.419,3.56038039]
[1772723113952,3.81896588,90.473,90.419,3.56038039]
[1772723114171,3.81896588,90.467,90.419,3.56038039]
[1772723114364,3.81896588,90.449,90.39,3.76038039]
[1772723114662,3.81896588,90.449,90.39,14.8234359]
[1772723114863,3.81896588,90.449,90.394,11.06260101]
[1772723114864,11.06842604,90.44,90.394,11.06260101]
[1772723115074,3.81896588,90.449,90.402,3.56038039]
[1772723115279,11.06842604,90.44,90.402,3.56038039]
[1772723115459,11.06842604,90.44,90.39,0.2]
[1772723115460,3.81896588,90.429,90.39,0.2]
[1772723115768,3.81896588,90.427,90.39,0.2]
[1772723115954,3.81896588,90.427,90.4,1e-08]
[1772723116150,3.81896588,90.427,90.39,0.2]
[1772723116769,3.81896588,90.419,90.366,11.06606372]
[1772723117070,38.70482593,90.428,90.35,11.1679766]
[1772723117071,3.81896588,90.409,90.35,11.1679766]
[1772723117467,3.81896588,90.409,90.351,3.56038039]
[1772723117771,11.06219164,90.398,90.353,3.56038039]
[1772723118370,38.71767074,90.398,90.353,3.56038039]
[1772723118553,11.06842604,90.42,90.353,3.56038039]
[1772723118554,3.81896588,90.409,90.353,3.56038039]
[1772723118954,3.88642773,90.407,90.353,3.56038039]
[1772723119175,3.88642773,90.401,90.353,3.56038039]
[1772723120074,11.06842604,90.46,90.36,3.52476224]
[1772723120373,11.06842604,90.46,90.371,0.28432314]
[1772723120576,0.28432314,90.459,90.388,3.52476224]
[1772723120885,11.05424317,90.463,90.402,3.52476224]
[1772723121379,0.28432314,90.462,90.402,3.52476224]
[1772723121877,0.28432314,90.462,90.404,3.52476224]
[1772723121878,3.88642773,90.46,90.404,3.52476224]
[1772723122059,14.95485377,90.46,90.404,3.52476224]
[1772723122262,3.88642773,90.459,90.404,3.52476224]
[1772723122479,3.88642773,90.451,90.404,3.52476224]
[1772723122777,11.05448756,90.461,90.404,3.52476224]
[1772723122992,3.88642773,90.46,90.406,3.52476224]
[1772723123486,3.88642773,90.458,90.406,3.52476224]
[1772723123654,3.88642773,90.452,90.406,3.52476224]
[1772723124180,3.88642773,90.459,90.408,3.52476224]
[1772723124385,3.88642773,90.439,90.38,3.52476224]
[1772723124881,3.88642773,90.437,90.38,3.52476224]
[1772723125283,3.88642773,90.419,90.367,3.52476224]
[1772723125472,4.82477569,90.44,90.351,11.06794612]
[1772723125473,3.88642773,90.399,90.351,11.06794612]
[1772723125675,3.69383402,90.397,90.258,44.31704301]
[1772723125875,4.82477569,90.41,90.252,182.82143329]
[1772723125876,3.88642773,90.336,90.252,182.82143329]
[1772723126069,3.88642773,90.329,90.253,0.28432314]
[1772723126273,44.26039855,90.375,90.252,182.82143329]
[1772723126274,3.88642773,90.342,90.256,0.28432314]
[1772723126581,11.06843614,90.347,90.252,227.14178076]
[1772723126582,3.73854796,90.346,90.252,127.42099896]
[1772723126784,3.73854796,90.346,90.255,3.69383402]
[1772723126974,3.73854796,90.346,90.256,0.28432314]
[1772723127176,3.73854796,90.346,90.257,1.1079473]
[1772723127679,3.73854796,90.346,90.262,3.58677477]
[1772723127883,3.73854796,90.346,90.28,0.28432314]
[1772723128074,3.73854796,90.346,90.292,3.58677477]
[1772723128387,3.73854796,90.379,90.308,3.58677477]
[1772723128590,3.73854796,90.379,90.307,0.14216157]
[1772723128591,3.73854796,90.405,90.322,3.58677477]
[1772723128791,3.73854796,90.423,90.338,3.58677477]
[1772723128966,3.73854796,90.423,90.356,3.58677477]
[1772723129161,3.73854796,90.423,90.37,3.58677477]
[1772723129373,3.73854796,90.423,90.378,3.58677477]
[1772723129565,3.73854796,90.423,90.333,4.82477569]
[1772723129566,3.73854796,90.451,90.395,0.14216157]
[1772723129763,3.73854796,90.451,90.369,1.10657415]
[1772723129764,3.73854796,90.464,90.406,3.58677477]
[1772723129978,3.73854796,90.464,90.372,3.69383402]
[1772723129979,3.73854796,90.461,90.409,38.71295999]
[1772723130205,3.73854796,90.461,90.41,3.58677477]
[1772723130490,3.73854796,90.461,90.409,11.06084571]
[1772723130780,3.73854796,90.474,90.41,3.58677477]
[1772723131084,3.73854796,90.469,90.409,11.06084571]
[1772723131274,0.14216157,90.464,90.409,11.06084571]
[1772723131582,3.73854796,90.462,90.41,3.58677477]
[1772723131886,3.73854796,90.462,90.388,44.53762155]
[1772723131887,3.73854796,90.449,90.369,3.58677477]
[1772723132086,4.82477569,90.47,90.369,3.58677477]
[1772723132087,3.73854796,90.427,90.369,3.58677477]
[1772723132392,3.73854796,90.419,90.37,38.72966692]
[1772723132698,3.73854796,90.419,90.371,3.58677477]
[1772723133261,3.73854796,90.417,90.36,11.06684373]
[1772723133479,3.73854796,90.417,90.361,3.58677477]
[1772723133480,3.73854796,90.415,90.361,3.58677477]
[1772723133668,3.73854796,90.413,90.361,3.58677477]
[1772723133876,3.73854796,90.409,90.361,3.58677477]
[1772723134070,3.73854796,90.405,90.35,3.58677477]
[1772723135389,3.73854796,90.404,90.35,3.58677477]
[1772723135771,3.73854796,90.399,90.349,11.06819112]
[1772723136073,3.73854796,90.389,90.338,14.76337286]
[1772723136278,3.73854796,90.389,90.338,46.02399473]
[1772723136586,3.73854796,90.389,90.339,3.58677477]
[1772723137979,11.06162667,90.403,90.341,3.58677477]
[1772723138294,3.73854796,90.4,90.346,0.28432314]
[1772723138495,3.73854796,90.4,90.347,3.58677477]
[1772723138987,3.73854796,90.398,90.342,11.06904872]
[1772723139294,3.73854796,90.396,90.342,38.74167053]
[1772723139482,3.73854796,90.394,90.343,3.58677477]
[1772723139793,3.73854796,90.393,90.342,11.06904872]
[1772723139971,3.73854796,90.389,90.331,27.67573048]
[1772723140272,3.73854796,90.385,90.333,3.58677477]
[1772723140476,11.06331191,90.389,90.333,3.58677477]
[1772723140680,3.73854796,90.387,90.333,3.58677477]
[1772723141272,3.73854796,90.385,90.332,38.74595933]
[1772723141476,3.73854796,90.383,90.332,38.74595933]
[1772723141678,3.73854796,90.381,90.332,38.74595933]
[1772723142574,3.73854796,90.395,90.335,3.58677477]
[1772723142775,11.06126342,90.406,90.345,3.58677477]
[1772723143077,3.73854796,90.405,90.347,3.58677477]
[1772723143277,3.73854796,90.404,90.347,3.58677477]
[1772723143796,3.73854796,90.402,90.347,3.58677477]
[1772723144694,3.73854796,90.402,90.349,3.58677477]
[1772723145087,3.73854796,90.4,90.349,3.58677477]
[1772723146893,3.73854796,90.398,90.35,38.73824017]
[1772723147291,3.73854796,90.398,90.35,42.32501494]
[1772723147596,11.06206927,90.399,90.35,42.32501494]
[1772723147597,3.73854796,90.396,90.35,38.73824017]
[1772723147803,4.84597993,90.396,90.35,38.73824017]
[1772723147987,3.73854796,90.395,90.35,38.73824017]
[1772723148191,3.73854796,90.395,90.35,11.06806862]
[1772723148398,3.73854796,90.389,90.339,11.0694163]
[1772723148706,3.73854796,90.369,90.286,3.58677477]
[1772723148881,3.56713654,90.367,90.291,0.28432314]
[1772723149198,3.56713654,90.367,90.29,3.69383402]
[1772723149199,3.56713654,90.367,90.298,3.58453878]
[1772723149382,3.56713654,90.359,90.298,3.58453878]
[1772723150100,3.56713654,90.371,90.313,0.28432314]
[1772723150394,11.06507615,90.375,90.318,3.58453878]
[1772723150584,3.56713654,90.374,90.318,3.58453878]
[1772723150989,3.56713654,90.372,90.32,3.58453878]
[1772723151202,3.56713654,90.372,90.324,3.58453878]
[1772723151406,3.56713654,90.372,90.328,3.58453878]
[1772723151785,3.56713654,90.372,90.319,38.75153621]
[1772723151981,3.56713654,90.37,90.319,38.75153621]
[1772723152185,3.56713654,90.37,90.319,42.33607499]
[1772723152389,3.56713654,90.369,90.32,3.58453878]
[1772723152590,4.67456851,90.379,90.32,3.58453878]
[1772723152885,11.06142135,90.405,90.333,3.58453878]
[1772723153095,3.56713654,90.404,90.337,3.58453878]
[1772723153305,3.56713654,90.404,90.347,3.58453878]
[1772723154387,3.56713654,90.402,90.347,3.58453878]
[1772723154584,3.56713654,90.4,90.347,3.58453878]
[1772723154807,3.56713654,90.398,90.347,3.58453878]
[1772723155119,3.56713654,90.396,90.348,11.06831363]
[1772723155406,38.71809904,90.397,90.348,11.06831363]
[1772723155407,3.56713654,90.394,90.348,11.06831363]
[1772723155594,3.56713654,90.392,90.348,38.7390977]
[1772723156107,3.56713654,90.392,90.349,3.58453878]
[1772723156406,11.05974474,90.418,90.349,3.58453878]
[1772723156580,3.56713654,90.416,90.354,0.28432314]
[1772723156907,11.05974474,90.418,90.349,3.58453878]
[1772723156908,3.56713654,90.409,90.349,3.58453878]
[1772723157084,11.06096805,90.408,90.353,3.58453878]
[1772723157288,3.56713654,90.408,90.357,3.58453878]
[1772723157784,14.62810459,90.408,90.357,3.58453878]
[1772723157982,3.56713654,90.407,90.357,3.58453878]
[1772723159110,3.56713654,90.405,90.352,27.66955905]
[1772723159306,3.56713654,90.399,90.347,11.06843614]
[1772723159499,3.56713654,90.397,90.347,38.73952649]
[1772723159689,3.56713654,90.395,90.348,3.58453878]
[1772723160507,3.56713654,90.387,90.323,3.58453878]
[1772723160707,11.06842604,90.39,90.323,3.58453878]
[1772723160708,3.56713654,90.385,90.323,3.58453878]
[1772723161292,3.56713654,90.379,90.325,3.58453878]
[1772723161493,3.56713654,90.377,90.324,38.74939107]
[1772723161694,3.56713654,90.375,90.324,38.74939107]
[1772723161890,3.56713654,90.375,90.325,3.58453878]
[1772723162505,3.56713654,90.373,90.324,11.07125459]
[1772723162706,3.56713654,90.371,90.324,11.07125459]
[1772723163100,38.72366789,90.384,90.315,11.07235785]
[1772723163101,3.56713654,90.369,90.315,11.07235785]
[1772723163413,12.17585801,90.37,90.305,0.28432314]
[1772723163414,3.56713654,90.367,90.305,0.28432314]
[1772723163708,3.56713654,90.365,90.308,3.58453878]